bitfinex/quotes_BTCUSD_20250526
["timestamp","ask_amount","ask_price","bid_price","bid_amount"]
[1748230458336,0.6688973,109560.0,109550.0,0.03625418]
[1748230458543,0.67802413,109560.0,109550.0,0.03625418]
[1748230458941,0.68715138,109560.0,109550.0,0.03625418]
[1748230459880,0.68915138,109560.0,109550.0,0.03625418]
[1748230460086,0.68915138,109560.0,109550.0,0.04538184]
[1748230460905,0.68915138,109560.0,109550.0,0.05976833]
[1748230462510,0.68915188,109560.0,109550.0,0.05976833]
[1748230462690,0.85885995,109560.0,109550.0,0.04177115]
[1748230463095,1.77745205,109560.0,109550.0,0.01438649]
[1748230463638,1.78745205,109560.0,109550.0,0.01438649]
[1748230463852,1.78745205,109560.0,109530.0,0.01438649]
[1748230463853,0.6266088,109540.0,109530.0,0.01438649]
[1748230464071,1.34193645,109540.0,109530.0,0.01453569]
[1748230465048,1.34193645,109540.0,109530.0,0.0001492]
[1748230465412,1.34193645,109540.0,109530.0,0.00927911]
[1748230466086,1.34593645,109540.0,109530.0,0.00927911]
[1748230466316,1.00393645,109540.0,109530.0,0.00927911]
[1748230466455,1.00693645,109540.0,109530.0,0.0001492]
[1748230467104,0.57292959,109530.0,109520.0,0.12755962]
[1748230467325,0.66247515,109530.0,109520.0,0.12755962]
[1748230468246,0.67160481,109530.0,109520.0,0.12755962]
[1748230468433,0.67160456,109530.0,109520.0,0.05443682]
[1748230468771,0.68073431,109530.0,109520.0,0.05443682]
[1748230469135,0.68273439,109530.0,109520.0,0.04530674]
[1748230469370,0.68273439,109530.0,109520.0,0.0544369]
[1748230469506,0.64621615,109530.0,109520.0,0.0544369]
[1748230469713,0.64621615,109530.0,109520.0,0.0542129]
[1748230471828,0.660757,109530.0,109520.0,0.0542129]
[1748230473048,0.17168641,109530.0,109520.0,0.0542129]
[1748230473251,0.660757,109530.0,109520.0,0.0542129]
[1748230473937,0.67447643,109530.0,109520.0,0.0542129]
[1748230474141,0.67447643,109530.0,109520.0,0.0539665]
[1748230475481,0.18540584,109530.0,109520.0,0.0539665]
[1748230475694,0.67447643,109530.0,109520.0,0.0539665]
[1748230477995,0.31670499,109530.0,109520.0,0.0539665]
[1748230478372,0.80577558,109530.0,109520.0,0.0539665]
[1748230481131,0.80777558,109530.0,109520.0,0.0539665]
[1748230481867,0.80581558,109530.0,109520.0,0.0539665]
[1748230482070,0.80881558,109530.0,109520.0,0.0539665]
[1748230482761,0.66293558,109530.0,109520.0,0.0539665]
[1748230482937,0.80881558,109530.0,109520.0,0.0539665]
[1748230485616,0.66293558,109530.0,109520.0,0.0539665]
[1748230485719,0.80881558,109530.0,109520.0,0.0539665]
[1748230487531,0.82324444,109530.0,109520.0,0.0539665]
[1748230489789,0.82324444,109530.0,109520.0,0.05374474]
[1748230490230,0.10897442,109530.0,109520.0,0.05374474]
[1748230490435,0.25485442,109530.0,109520.0,0.05374474]
[1748230490786,0.24042556,109530.0,109520.0,0.05374474]
[1748230490971,0.23842556,109530.0,109520.0,0.05374474]
[1748230491884,0.25309312,109530.0,109520.0,0.05374474]
[1748230492294,0.25309312,109530.0,109520.0,0.06813123]
[1748230492701,0.25009312,109530.0,109520.0,0.06813123]
[1748230493120,0.25109312,109530.0,109520.0,0.06813123]
[1748230493320,0.25109312,109530.0,109520.0,0.05374474]
[1748230494344,0.23642556,109530.0,109520.0,0.05374474]
[1748230494563,0.09054556,109530.0,109520.0,0.05374474]
[1748230495020,0.29782556,109530.0,109520.0,0.05374474]
[1748230496807,0.31243429,109530.0,109520.0,0.05374474]
[1748230497889,0.31243429,109530.0,109520.0,0.05348042]
[1748230503643,0.91629571,109530.0,109520.0,0.02608951]
[1748230503883,0.83430464,109530.0,109520.0,0.04435008]
[1748230504089,0.84343413,109530.0,109520.0,0.03521992]
[1748230504452,0.83430447,109530.0,109520.0,0.05348041]
[1748230504656,0.85256404,109530.0,109520.0,0.05348041]
[1748230504881,0.85256396,109530.0,109520.0,0.06796236]
[1748230505085,0.86169387,109530.0,109520.0,0.06796236]
[1748230505292,0.86169387,109530.0,109520.0,0.06796245]
[1748230505496,0.87464282,109530.0,109520.0,0.06796245]
[1748230505797,0.86169387,109530.0,109520.0,0.07709261]
[1748230506731,0.69755413,109530.0,109520.0,0.07709261]
[1748230506920,0.84343413,109530.0,109520.0,0.07709261]
[1748230507301,0.85256404,109530.0,109520.0,0.06796245]
[1748230507693,0.85256388,109530.0,109520.0,0.07709261]
[1748230507881,0.86591325,109530.0,109520.0,0.07709261]
[1748230508211,0.94048494,109530.0,109520.0,0.07709261]
[1748230508418,0.94048494,109530.0,109520.0,0.01448195]
[1748230508419,1.60389516,109530.0,109520.0,0.01448195]
[1748230508841,1.11482457,109530.0,109520.0,0.01448195]
[1748230509067,0.26958664,109520.0,109510.0,0.00913158]
[1748230509319,0.85733329,109520.0,109510.0,0.00913158]
[1748230509553,0.85733329,109520.0,109510.0,0.01826308]
[1748230510357,0.84820279,109520.0,109510.0,0.01826308]
[1748230510575,1.33727338,109520.0,109510.0,0.02739449]
[1748230510779,1.40241172,109520.0,109510.0,0.02739449]
[1748230511002,1.40241172,109520.0,109510.0,0.04565766]
[1748230511213,1.40241172,109520.0,109510.0,0.05478899]
[1748230511416,1.40241172,109520.0,109510.0,0.06392024]
[1748230511835,1.33827338,109520.0,109510.0,0.06392024]
[1748230511957,1.33827338,109520.0,109510.0,0.05478899]
[1748230512994,0.28053532,109510.0,109500.0,0.00913242]
[1748230513219,0.29881741,109500.0,109490.0,0.01448195]
[1748230513501,0.85916981,109500.0,109490.0,0.01448195]
[1748230513847,0.04193918,109490.0,109480.0,0.0601415]
[1748230514021,0.82240225,109490.0,109480.0,0.0601415]
[1748230514222,0.82753525,109490.0,109480.0,0.0601415]
[1748230514476,0.82768414,109490.0,109480.0,0.0601415]
[1748230515252,0.82768414,109490.0,109480.0,0.04565955]
[1748230515452,0.81855114,109490.0,109480.0,0.04565955]
[1748230515658,0.82768397,109490.0,109480.0,0.04565955]
[1748230515871,0.65840589,109490.0,109480.0,0.04565955]
[1748230516079,0.80428589,109490.0,109480.0,0.04965955]
[1748230516599,0.81341839,109490.0,109480.0,0.04565955]
[1748230516892,0.81341839,109490.0,109480.0,0.04765955]
[1748230517193,0.81641839,109490.0,109480.0,0.04765955]
[1748230517401,0.81641839,109490.0,109480.0,0.04757366]
[1748230517783,0.81641839,109490.0,109480.0,0.05470708]
[1748230518387,0.82555106,109490.0,109480.0,0.05470708]
[1748230519491,0.1723353,109490.0,109480.0,0.05470708]
[1748230519679,0.83672406,109490.0,109480.0,0.05470708]
[1748230520138,0.83672397,109490.0,109480.0,0.05470708]
[1748230520469,0.84585689,109490.0,109480.0,0.05470708]
[1748230520682,0.83672397,109490.0,109480.0,0.05470708]
[1748230521225,0.84585697,109490.0,109480.0,0.05470708]
[1748230522655,0.85499005,109490.0,109480.0,0.05470708]
[1748230522862,0.84585697,109490.0,109480.0,0.05470708]
[1748230524876,0.85499005,109490.0,109480.0,0.05470708]
[1748230529283,0.85499005,109490.0,109470.0,0.03822192]
[1748230529284,0.02740101,109480.0,109470.0,0.02908775]
[1748230529487,1.33604327,109480.0,109470.0,0.01082954]
[1748230530138,1.34604327,109480.0,109470.0,0.01082954]
[1748230530349,0.18269845,109470.0,109460.0,0.03653113]
[1748230530562,0.07273534,109460.0,109450.0,0.12048597]
[1748230530770,0.65121139,109460.0,109450.0,0.12048597]
[1748230530979,0.68306998,109460.0,109450.0,0.04736317]
[1748230531156,0.68306948,109460.0,109450.0,0.04736317]
[1748230531522,0.19399889,109460.0,109450.0,0.05649967]
[1748230531733,0.68306948,109460.0,109450.0,0.05649967]
[1748230531976,0.65566338,109460.0,109450.0,0.05649967]
[1748230532151,0.66379855,109460.0,109450.0,0.05649967]
[1748230532509,0.67293389,109460.0,109450.0,0.04567013]
[1748230532688,0.6729338,109460.0,109450.0,0.04567013]
[1748230532834,0.66379855,109460.0,109450.0,0.04567013]
[1748230533035,0.66379855,109460.0,109450.0,0.04967013]
[1748230533848,0.66379855,109460.0,109450.0,0.04567013]
[1748230534049,0.65466338,109460.0,109450.0,0.04567013]
[1748230534271,0.08954556,109460.0,109450.0,0.04567013]
[1748230534447,0.08954556,109460.0,109450.0,0.44817013]
[1748230534863,0.08954556,109460.0,109450.0,0.52817013]
[1748230535074,0.08954556,109460.0,109450.0,0.52917013]
[1748230535779,0.08954556,109460.0,109450.0,0.54365208]
[1748230537669,0.56190392,109480.0,109470.0,0.04567358]
[1748230537873,0.08954556,109480.0,109470.0,0.04567358]
[1748230538074,0.23546556,109480.0,109470.0,0.04567358]
[1748230538937,0.25411147,109480.0,109470.0,0.04567358]
[1748230539109,0.25411147,109480.0,109470.0,0.05651598]
[1748230540967,0.2632448,109480.0,109470.0,0.05651598]
[1748230541112,0.2952448,109480.0,109470.0,0.05651598]
[1748230541310,1.0252984,109480.0,109470.0,0.03824707]
[1748230541510,1.03443248,109480.0,109470.0,0.07099844]
[1748230541735,1.03984,109480.0,109470.0,0.08926752]
[1748230541934,1.03984,109480.0,109470.0,0.08926711]
[1748230542154,0.85715824,109480.0,109470.0,0.08926711]
[1748230542362,1.03984,109480.0,109470.0,0.05272911]
[1748230542574,1.03984,109480.0,109470.0,0.06186386]
[1748230542722,1.0307065,109480.0,109470.0,0.07099844]
[1748230543271,1.0307065,109480.0,109470.0,0.05651649]
[1748230544281,1.0307065,109480.0,109470.0,0.06565099]
[1748230544924,1.01706059,109480.0,109470.0,0.06565099]
[1748230545429,1.00792684,109480.0,109470.0,0.05651649]
[1748230546641,1.00792684,109480.0,109470.0,0.04738191]
[1748230547099,1.00792684,109480.0,109470.0,0.05651649]
[1748230547501,0.82524475,109480.0,109470.0,0.06565091]
[1748230547753,0.83437883,109480.0,109470.0,0.06565091]
[1748230549715,1.00792684,109480.0,109470.0,0.0108424]
[1748230549917,1.55699743,109480.0,109470.0,0.0108424]
[1748230552156,1.05792684,109480.0,109470.0,0.0108424]
[1748230552562,1.06792684,109480.0,109470.0,0.0108424]
[1748230552805,0.09421019,109470.0,109440.0,0.07850629]
[1748230552961,0.77511457,109470.0,109460.0,0.02740674]
[1748230553170,1.01062013,109470.0,109460.0,0.02740699]
[1748230553388,1.00148571,109470.0,109460.0,0.02740699]
[1748230553907,1.00148571,109470.0,109460.0,0.0182714]
[1748230554330,0.25325056,109460.0,109450.0,0.01827008]
[1748230554493,0.66742283,109460.0,109450.0,0.01827008]
[1748230554906,0.87381416,109460.0,109450.0,0.01827008]
[1748230555092,0.0916091,109450.0,109430.0,0.01826782]
[1748230555297,0.08954556,109440.0,109430.0,0.01826782]
[1748230556380,0.08954556,109440.0,109430.0,0.01876516]
[1748230556656,0.08854556,109440.0,109430.0,0.01876516]
[1748230557459,0.08854556,109440.0,109430.0,0.02176516]
[1748230557988,0.08854556,109440.0,109430.0,0.04304075]
[1748230558555,0.08854556,109440.0,109430.0,0.44594075]
[1748230559093,0.08835843,109440.0,109430.0,0.44594075]
[1748230560280,0.08802548,109440.0,109430.0,0.44594075]
[1748230565469,0.08802548,109440.0,109430.0,0.52594075]
[1748230565687,0.08802548,109440.0,109430.0,0.44594075]
[1748230566122,0.71750076,109460.0,109450.0,0.04568193]
[1748230566425,0.30884056,109460.0,109450.0,0.04568193]
[1748230567001,0.31797581,109460.0,109450.0,0.04568193]
[1748230568636,0.31797573,109460.0,109450.0,0.04568193]
[1748230569591,0.29970556,109460.0,109450.0,0.04568193]
[1748230570555,0.29970556,109460.0,109450.0,0.12568193]
[1748230573733,0.79791115,109460.0,109450.0,0.12568193]
[1748230574035,1.00803279,109460.0,109450.0,0.11654602]
[1748230574370,0.82531765,109460.0,109450.0,0.12568211]
[1748230574932,0.82531765,109460.0,109450.0,0.13481811]
[1748230575146,0.82531749,109460.0,109450.0,0.13481811]
[1748230576425,0.82531749,109460.0,109450.0,0.05481811]
[1748230583327,0.8161819,109460.0,109450.0,0.05481811]
[1748230583492,0.82531749,109460.0,109450.0,0.05481811]
[1748230583845,0.8161819,109460.0,109450.0,0.05481811]
[1748230584031,0.29970556,109460.0,109450.0,0.05481811]
[1748230584247,0.29970556,109460.0,109450.0,0.06933087]
[1748230584572,0.15374556,109460.0,109450.0,0.06933087]
[1748230584995,0.29970556,109460.0,109450.0,0.06933087]
[1748230586760,0.29970556,109460.0,109450.0,0.05481811]
[1748230593199,0.29970556,109460.0,109450.0,0.06933112]
[1748230594344,0.79791115,109460.0,109450.0,0.06933112]
[1748230594677,0.8070464,109460.0,109450.0,0.06933112]
[1748230595286,0.81618182,109460.0,109450.0,0.06933112]
[1748230595798,0.81618174,109460.0,109450.0,0.06933112]
[1748230597438,0.32711115,109460.0,109450.0,0.06933112]
[1748230597591,0.81618174,109460.0,109450.0,0.06933112]
[1748230597798,0.31797573,109460.0,109450.0,0.06933112]
[1748230597999,0.81618166,109460.0,109450.0,0.06933112]
[1748230598589,0.15374556,109460.0,109450.0,0.06933112]
[1748230598802,0.23550556,109460.0,109450.0,0.06933112]
[1748230599134,0.26800556,109460.0,109450.0,0.06933112]
[1748230599335,0.29870556,109460.0,109450.0,0.14933112]
[1748230599557,0.29870556,109460.0,109450.0,0.13481811]
[1748230601783,0.15274556,109460.0,109450.0,0.13481811]
[1748230601939,0.29870556,109460.0,109450.0,0.13481811]
[1748230603917,0.78777615,109460.0,109450.0,0.13481811]
[1748230604715,0.61111615,109460.0,109450.0,0.47481811]
[1748230604876,0.75707615,109460.0,109450.0,0.47481811]
[1748230605109,0.26800556,109460.0,109450.0,0.47481811]
[1748230605313,0.29940556,109460.0,109450.0,0.47481811]
[1748230606230,0.15344556,109460.0,109450.0,0.47481811]
[1748230606572,0.29940556,109460.0,109450.0,0.47481811]
[1748230608271,0.21116,109470.0,109460.0,0.04567777]
[1748230608476,0.08954556,109470.0,109460.0,0.38567777]
[1748230608675,0.08954556,109470.0,109460.0,0.41597777]
[1748230608858,0.08954556,109470.0,109460.0,0.44707777]
[1748230609445,0.032,109480.0,109470.0,0.04567358]
[1748230609817,0.032,109480.0,109470.0,0.03653842]
[1748230609818,0.23550556,109480.0,109470.0,0.03653842]
[1748230610021,0.08954556,109480.0,109470.0,0.06803842]
[1748230610434,0.08954556,109480.0,109470.0,0.04906861]
[1748230610633,0.08969442,109480.0,109470.0,0.08056861]
[1748230610873,0.08969442,109480.0,109470.0,0.04906861]
[1748230611187,0.09069442,109480.0,109470.0,0.04906861]
[1748230611607,0.09069442,109480.0,109470.0,0.11246861]
[1748230611915,0.09269442,109480.0,109470.0,0.11475212]
[1748230613115,0.00314886,109480.0,109470.0,0.11475212]
[1748230613712,0.00314886,109480.0,109470.0,0.11246861]
[1748230613910,0.00314886,109480.0,109470.0,0.11475203]
[1748230614121,0.00314886,109480.0,109470.0,0.11475169]
[1748230614316,0.00314886,109480.0,109470.0,0.11246861]
[1748230614930,0.00114886,109480.0,109470.0,0.11246861]
[1748230615476,0.00114886,109480.0,109470.0,0.19246861]
[1748230615613,0.00014886,109480.0,109470.0,0.19246861]
[1748230618757,0.00014886,109480.0,109470.0,0.67838861]
[1748230619406,0.00014886,109480.0,109470.0,0.76762861]
[1748230619766,0.00014886,109480.0,109470.0,0.62170861]
[1748230620798,0.00014886,109480.0,109470.0,0.60917842]
[1748230622120,0.06334886,109480.0,109470.0,0.45653842]
[1748230622317,0.15289442,109480.0,109470.0,0.45653842]
[1748230622521,0.15289442,109480.0,109470.0,0.60913842]
[1748230622942,0.15289442,109480.0,109470.0,0.45653842]
[1748230623096,0.66023192,109480.0,109470.0,0.45653842]
[1748230623301,0.66023192,109480.0,109470.0,0.11653842]
[1748230623495,0.66023184,109480.0,109470.0,0.11653842]
[1748230624131,0.66936551,109480.0,109470.0,0.11653842]
[1748230624331,0.66936542,109480.0,109470.0,0.11653842]
[1748230624539,0.65109834,109480.0,109470.0,0.11653842]
[1748230624856,0.66023184,109480.0,109470.0,0.12736227]
[1748230625336,0.66323184,109480.0,109470.0,0.12736227]
[1748230625533,0.65409834,109480.0,109470.0,0.12736227]
[1748230627249,0.65709834,109480.0,109470.0,0.12736227]
[1748230627885,0.64796501,109480.0,109470.0,0.12736227]
[1748230628115,0.65709834,109480.0,109470.0,0.12736227]
[1748230628608,0.64796501,109480.0,109470.0,0.12736227]
[1748230631265,0.15889442,109480.0,109470.0,0.46736227]
[1748230631469,0.15889442,109480.0,109470.0,0.49966227]
[1748230631470,0.00614886,109480.0,109470.0,0.49966227]
[1748230631675,0.00614886,109480.0,109470.0,0.53136227]
[1748230632093,0.00314886,109480.0,109470.0,0.62451578]
[1748230632496,0.00014886,109480.0,109470.0,0.65188478]
[1748230633307,0.00014886,109480.0,109470.0,0.63745298]
[1748230633604,0.00014886,109480.0,109470.0,0.64045298]
[1748230634377,0.00014886,109480.0,109470.0,0.64245298]
[1748230635197,0.05664886,109520.0,109510.0,0.04565692]
[1748230635343,0.1463435,109520.0,109510.0,0.04565692]
[1748230635957,0.1463435,109520.0,109510.0,0.41089727]
[1748230636572,0.1483435,109520.0,109510.0,0.41089727]
[1748230636997,0.1483435,109520.0,109510.0,0.07089727]
[1748230637204,0.09169464,109520.0,109510.0,0.07089727]
[1748230637410,0.00514908,109520.0,109510.0,0.07317993]
[1748230637587,0.00514908,109520.0,109510.0,0.07089727]
[1748230637790,0.00514908,109520.0,109510.0,0.0731797]
[1748230638013,0.00514908,109520.0,109510.0,0.1362797]
[1748230638394,0.00514908,109520.0,109510.0,0.13399727]
[1748230638792,0.00214908,109520.0,109510.0,0.13399727]
[1748230639018,0.00214908,109520.0,109510.0,0.13499727]
[1748230639159,0.00014908,109520.0,109510.0,0.13499727]
[1748230639559,0.00114908,109520.0,109510.0,0.13499727]
[1748230640046,0.00014908,109520.0,109510.0,0.10975692]
[1748230640456,0.00014908,109520.0,109510.0,0.11175692]
[1748230641324,0.00014908,109520.0,109510.0,0.04865692]
[1748230641526,0.00014908,109520.0,109510.0,0.07750304]
[1748230641867,0.00014908,109520.0,109510.0,0.10800304]
[1748230642448,0.00014908,109520.0,109510.0,0.18800304]
[1748230642666,0.48907059,109550.0,109540.0,0.04564442]
[1748230642885,0.08954556,109550.0,109540.0,0.38564442]
[1748230643049,0.61151615,109550.0,109540.0,0.38564442]
[1748230644302,0.61351615,109550.0,109540.0,0.38564442]
[1748230644779,0.61651615,109550.0,109540.0,0.38564442]
[1748230645564,0.64711615,109550.0,109540.0,0.38564442]
[1748230647766,0.15804556,109550.0,109540.0,0.38564442]
[1748230651496,0.0379,109550.0,109540.0,0.38564442]
[1748230651702,0.005,109550.0,109540.0,0.38564442]
[1748230651918,0.005,109550.0,109540.0,0.53148442]
[1748230652083,0.005,109550.0,109540.0,0.59328442]
[1748230652291,0.003,109550.0,109540.0,0.59328442]
[1748230652511,0.003,109550.0,109540.0,0.67328442]
[1748230652908,0.004,109550.0,109540.0,0.67328442]
[1748230653158,0.004,109550.0,109540.0,0.68765939]
[1748230653367,0.004,109550.0,109540.0,0.65595939]
[1748230653693,0.001,109550.0,109540.0,0.65595939]
[1748230654104,0.002,109550.0,109540.0,0.65595939]
[1748230655167,0.002,109550.0,109540.0,0.62585939]
[1748230655687,0.002,109550.0,109540.0,0.77837939]
[1748230656050,0.0663,109550.0,109540.0,0.77837939]
[1748230656820,0.0663,109550.0,109540.0,0.48001939]
[1748230656960,0.0663,109550.0,109540.0,0.77837939]
[1748230658041,0.0663,109550.0,109540.0,0.58544963]
[1748230658216,0.0663,109550.0,109540.0,0.63109405]
[1748230659128,0.0663,109550.0,109540.0,0.62749168]
[1748230660261,0.0663,109550.0,109540.0,0.63109405]
[1748230665070,0.0663,109550.0,109540.0,0.13089089]
[1748230665071,0.84573659,109550.0,109540.0,0.13089089]
[1748230665271,0.86399284,109550.0,109540.0,0.14001955]
[1748230665410,0.66317148,109550.0,109540.0,0.14914805]
[1748230665856,0.65404373,109550.0,109540.0,0.14914805]
[1748230666090,0.66317148,109550.0,109540.0,0.14559233]
[1748230666276,0.65404373,109550.0,109540.0,0.14559233]
[1748230666592,0.66317139,109550.0,109540.0,0.14559233]
[1748230667670,0.6814273,109550.0,109540.0,0.14559233]
[1748230668218,0.67229922,109550.0,109540.0,0.14559233]
[1748230668336,0.66317139,109550.0,109540.0,0.14559233]
[1748230668539,0.80901139,109550.0,109540.0,0.14559233]
[1748230669499,0.31081314,109550.0,109540.0,0.14559233]
[1748230669714,0.79988373,109550.0,109540.0,0.14914805]
[1748230670021,0.09154556,109550.0,109540.0,0.52004805]
[1748230670330,0.002,109550.0,109540.0,0.84930805]
[1748230670566,0.002,109550.0,109540.0,0.87666105]
[1748230671086,0.002,109550.0,109540.0,0.86228608]
[1748230671280,0.001,109550.0,109540.0,0.86228608]
[1748230671485,0.63491059,109590.0,109540.0,0.82577117]
[1748230671773,0.0314,109570.0,109540.0,0.82677117]
[1748230671898,0.0314,109570.0,109540.0,0.82777117]
[1748230672341,0.0314,109570.0,109540.0,0.82677117]
[1748230672544,0.0314,109570.0,109550.0,0.02884976]
[1748230672933,0.0638,109570.0,109550.0,0.02884976]
[1748230673139,0.0638,109570.0,109560.0,0.01825391]
[1748230673475,0.0638,109570.0,109560.0,0.03650604]
[1748230673674,0.0648,109570.0,109560.0,0.52898604]
[1748230674145,0.0678,109570.0,109560.0,0.52898604]
[1748230675206,0.0688,109570.0,109560.0,0.52898604]
[1748230675499,0.0688,109570.0,109560.0,0.37650604]
[1748230675500,0.15734556,109570.0,109560.0,0.37650604]
[1748230675798,0.15934556,109570.0,109560.0,0.52898604]
[1748230677045,0.66435071,109570.0,109560.0,0.37650604]
[1748230677269,0.64841615,109570.0,109560.0,0.37650604]
[1748230677466,0.66666789,109570.0,109560.0,0.03650604]
[1748230677603,0.81246789,109570.0,109560.0,0.03650604]
[1748230678015,0.30514556,109570.0,109560.0,0.03650604]
[1748230679018,0.31427139,109570.0,109560.0,0.03650604]
[1748230679198,0.30514556,109570.0,109560.0,0.03650604]
[1748230679397,0.30514556,109570.0,109560.0,0.06176436]
[1748230679769,0.31427139,109570.0,109560.0,0.06176436]
[1748230680410,0.30514556,109570.0,109560.0,0.06176436]
[1748230680647,0.31427139,109570.0,109560.0,0.06176436]
[1748230681348,0.34450751,109570.0,109560.0,0.06176436]
[1748230681751,0.35363376,109570.0,109560.0,0.06176436]
[1748230681945,0.34450751,109570.0,109560.0,0.06176436]
[1748230682359,0.36276008,109570.0,109560.0,0.06176436]
[1748230682528,0.35363367,109570.0,109560.0,0.06176436]
[1748230682699,0.85183067,109570.0,109560.0,0.06176436]
[1748230682900,0.84270426,109570.0,109560.0,0.06176436]
[1748230683105,0.83870426,109570.0,109560.0,0.06176436]
[1748230683411,0.84070426,109570.0,109560.0,0.06176436]
[1748230683619,0.84070426,109570.0,109560.0,0.04733103]
[1748230683816,0.84983051,109570.0,109560.0,0.04733103]
[1748230684891,0.85283109,109570.0,109560.0,0.04733103]
[1748230685609,0.85283168,109570.0,109560.0,0.04733103]
[1748230686405,0.69790518,109570.0,109560.0,0.04733103]
[1748230686611,0.84370518,109570.0,109560.0,0.04733103]
[1748230686818,0.84370518,109570.0,109560.0,0.04733153]
[1748230687041,1.02252575,109570.0,109560.0,0.01082499]
[1748230687251,1.52159634,109570.0,109560.0,0.01082499]
[1748230687461,1.03252575,109570.0,109560.0,0.01082499]
[1748230687817,1.03252575,109570.0,109560.0,0.02907982]
[1748230688183,1.03252575,109570.0,109560.0,0.01082499]
[1748230688800,0.09449501,109560.0,109550.0,0.07472009]
[1748230689005,0.67311116,109560.0,109550.0,0.07472009]
[1748230689173,0.68223832,109560.0,109550.0,0.06559259]
[1748230689748,0.68323832,109560.0,109550.0,0.06559259]
[1748230689957,0.68523832,109560.0,109550.0,0.06559259]
[1748230690151,0.70349224,109560.0,109550.0,0.06559259]
[1748230690692,0.7034929,109560.0,109550.0,0.05646501]
[1748230690895,0.7034929,109560.0,109550.0,0.03820957]
[1748230690896,0.86778736,109560.0,109550.0,0.03820957]
[1748230691210,0.94818162,109560.0,109550.0,0.03820957]
[1748230691411,0.94818162,109560.0,109550.0,0.01082499]
[1748230691412,1.33860337,109560.0,109550.0,0.01082499]
[1748230692036,1.33860337,109560.0,109550.0,0.0473379]
[1748230692234,1.33860337,109560.0,109550.0,0.06559381]
[1748230692418,0.84953278,109560.0,109550.0,0.06559398]
[1748230692801,0.85865994,109560.0,109550.0,0.06559381]
[1748230693001,0.85865994,109560.0,109550.0,0.05646598]
[1748230693229,0.85865994,109560.0,109550.0,0.0473379]
[1748230693545,0.85865994,109560.0,109550.0,0.05646598]
[1748230694106,0.85865994,109560.0,109550.0,0.06559398]
[1748230694471,0.85865994,109560.0,109550.0,0.05646598]
[1748230694608,0.85865994,109560.0,109550.0,0.02908132]
[1748230694806,0.67611157,109560.0,109550.0,0.05646582]
[1748230695000,0.6852384,109560.0,109550.0,0.06389649]
[1748230695463,0.69436581,109560.0,109550.0,0.06389649]
[1748230696575,0.8310784,109560.0,109550.0,0.0638959]
[1748230696864,0.8310784,109560.0,109550.0,0.05476824]
[1748230698963,0.67611107,109560.0,109550.0,0.05476824]
[1748230699269,0.83107832,109560.0,109550.0,0.0638959]
[1748230699582,0.84020573,109560.0,109550.0,0.05476824]
[1748230699935,0.84020573,109560.0,109550.0,0.0638959]
[1748230700291,0.83107832,109560.0,109550.0,0.0638959]
[1748230700917,0.83107832,109560.0,109550.0,0.07472089]
[1748230701110,0.657857,109560.0,109550.0,0.07472089]
[1748230701279,0.803697,109560.0,109550.0,0.07472089]
[1748230701608,0.81282375,109560.0,109550.0,0.07472089]
[1748230702715,0.82195058,109560.0,109550.0,0.07472089]
[1748230703630,0.81282375,109560.0,109550.0,0.07472089]
[1748230703923,0.82195066,109560.0,109550.0,0.07472089]
[1748230704124,0.82195058,109560.0,109550.0,0.07472089]
[1748230706884,0.82195058,109560.0,109550.0,0.08915422]
[1748230707834,0.83107758,109560.0,109550.0,0.08915422]
[1748230708043,0.82195058,109560.0,109550.0,0.08915422]
[1748230708227,0.81282375,109560.0,109550.0,0.07832923]
[1748230708432,0.82195066,109560.0,109550.0,0.07832923]
[1748230710000,0.83107774,109560.0,109550.0,0.07832923]
[1748230712380,0.82195066,109560.0,109550.0,0.07832923]
[1748230712722,0.78915615,109560.0,109550.0,0.07832923]
[1748230713575,0.80740981,109560.0,109550.0,0.07832923]
[1748230713782,0.80740973,109560.0,109550.0,0.07832923]
[1748230714290,0.7982829,109560.0,109550.0,0.07832923]
[1748230714632,0.64331615,109560.0,109550.0,0.07832923]
[1748230714839,0.27008556,109560.0,109550.0,0.07832923]
[1748230715045,0.89043122,109560.0,109550.0,0.07832923]
[1748230715398,0.80840972,109560.0,109550.0,0.07832923]
[1748230715734,0.80840964,109560.0,109550.0,0.07832923]
[1748230715906,0.79928281,109560.0,109550.0,0.07832923]
[1748230716057,0.31021222,109560.0,109550.0,0.07832923]
[1748230716258,0.79928281,109560.0,109550.0,0.07832923]
[1748230717334,0.80840964,109560.0,109550.0,0.07832923]
[1748230717635,0.66256964,109560.0,109550.0,0.07832923]
[1748230717832,0.80840964,109560.0,109550.0,0.07832923]
[1748230719294,0.81753664,109560.0,109550.0,0.07832923]
[1748230719938,0.79928281,109560.0,109550.0,0.07832923]
[1748230720141,0.80840964,109560.0,109550.0,0.07832923]
[1748230720463,0.61331615,109560.0,109550.0,0.41832923]
[1748230720659,0.75915615,109560.0,109550.0,0.41832923]
[1748230721037,0.75915615,109560.0,109550.0,0.49832923]
[1748230721842,0.7986829,109560.0,109550.0,0.49832923]
[1748230722165,0.81693681,109560.0,109550.0,0.49832923]
[1748230722393,0.81693673,109560.0,109550.0,0.49832923]
[1748230722510,0.82606389,109560.0,109550.0,0.49832923]
[1748230722712,0.81693673,109560.0,109550.0,0.49832923]
[1748230723775,1.50309704,109560.0,109550.0,0.09443333]
[1748230723976,1.00489962,109560.0,109550.0,0.13094608]
[1748230724202,1.00489962,109560.0,109550.0,0.14007399]
[1748230724902,1.00489962,109560.0,109550.0,0.14920182]
[1748230725759,0.82235125,109560.0,109550.0,0.15832898]
[1748230726168,0.83147858,109560.0,109550.0,0.15832898]
[1748230726680,0.82235125,109560.0,109550.0,0.15832898]
[1748230727529,0.82235075,109560.0,109550.0,0.15832898]
[1748230727728,0.84060516,109560.0,109550.0,0.15832898]
[1748230728287,0.84973249,109560.0,109550.0,0.15832898]
[1748230729868,0.84060516,109560.0,109550.0,0.15832898]
[1748230730027,0.80780973,109560.0,109550.0,0.15832898]
[1748230730227,0.78955615,109560.0,109550.0,0.15832898]
[1748230730530,0.7986829,109560.0,109550.0,0.15832898]
[1748230730880,0.79868298,109560.0,109550.0,0.15832898]
[1748230731082,0.78955615,109560.0,109550.0,0.15832898]
[1748230731423,0.79868298,109560.0,109550.0,0.15832898]
[1748230731827,0.80780998,109560.0,109550.0,0.15832898]
[1748230732539,1.01402694,109560.0,109550.0,0.12181808]
[1748230732737,1.01402694,109560.0,109550.0,0.14920198]
[1748230734509,1.01402694,109560.0,109550.0,0.14007415]
[1748230734821,1.01402694,109560.0,109550.0,0.14007424]
[1748230735482,1.00489994,109560.0,109550.0,0.13094624]
[1748230735692,0.99577278,109560.0,109550.0,0.13094624]
[1748230736004,0.99577278,109560.0,109550.0,0.14007432]
[1748230736403,1.48484337,109560.0,109550.0,0.14007432]
[1748230736785,1.48484337,109560.0,109550.0,0.13094624]
[1748230737013,1.48484337,109560.0,109550.0,0.14007424]
[1748230737234,0.99577278,109560.0,109550.0,0.13094624]
[1748230737388,0.98664537,109560.0,109550.0,0.10356158]
[1748230737773,0.98664537,109560.0,109550.0,0.11268958]
[1748230738140,0.98664537,109560.0,109550.0,0.13094608]
[1748230738341,0.98664537,109560.0,109550.0,0.12181808]